bitfinex/quotes_ETHUSD_20250724
["timestamp","ask_amount","ask_price","bid_price","bid_amount"]
[1753335484695,2.78266317,3593.7,3593.3,0.1384]
[1753335484976,0.1784,3593.9,3593.3,0.5707]
[1753335485179,0.04,3593.9,3593.6,0.1384]
[1753335485383,2.78264741,3593.7,3593.6,0.1384]
[1753335485547,2.78259666,3593.8,3593.6,0.1384]
[1753335486278,2.78264741,3593.7,3593.6,0.1384]
[1753335486480,3.78894741,3593.7,3593.6,0.1384]
[1753335486678,2.78286598,3593.5,3593.3,4.4934]
[1753335487068,2.78274412,3593.6,3593.3,4.4934]
[1753335487811,2.78280232,3593.5,3593.3,4.4934]
[1753335488100,2.78287972,3593.4,3593.3,0.1384]
[1753335488590,2.78281923,3593.5,3593.3,0.1384]
[1753335488808,2.78287972,3593.4,3593.3,0.1384]
[1753335489097,2.7828203,3593.5,3593.3,0.1384]
[1753335489303,2.78287972,3593.4,3593.3,0.1384]
[1753335490358,0.55,3593.6,3593.3,0.1384]
[1753335490555,2.78280228,3593.5,3593.3,0.1384]
[1753335490761,0.55,3593.6,3593.3,0.1384]
[1753335491079,3.33272986,3593.6,3593.3,0.1384]
[1753335491287,0.04,3593.9,3593.4,0.4294]
[1753335491486,0.04,3593.9,3593.5,0.5678]
[1753335491687,2.78257449,3593.8,3593.5,0.5678]
[1753335492016,0.04,3593.9,3593.5,1.3305]
[1753335492594,2.78262481,3593.8,3593.5,1.3305]
[1753335492774,2.78262481,3593.8,3593.5,0.9011]
[1753335493302,2.78272484,3593.6,3593.5,0.1384]
[1753335493506,2.78267596,3593.7,3593.5,0.1384]
[1753335494669,2.78259496,3593.8,3593.5,0.1384]
[1753335494870,0.04,3593.9,3593.5,0.5678]
[1753335495194,2.82250536,3593.9,3593.5,0.5678]
[1753335495366,2.78269292,3593.7,3593.5,0.1384]
[1753335495770,2.7825917,3593.8,3593.5,0.1384]
[1753335496206,0.04,3593.9,3593.5,0.1384]
[1753335496207,2.82250393,3593.9,3593.5,0.1384]
[1753335496712,2.78271572,3593.7,3593.5,0.1384]
[1753335497031,2.78272484,3593.6,3593.5,0.1384]
[1753335497207,3.23812484,3593.6,3593.5,4.4924]
[1753335497710,2.78287972,3593.4,3593.3,4.70599997]
[1753335498004,1.1438,3593.4,3592.7,0.1384]
[1753335498205,2.78304246,3593.2,3592.8,4.354]
[1753335498394,2.78311207,3593.1,3593.0,0.1384]
[1753335499370,2.78347547,3592.7,3592.5,0.001]
[1753335499574,2.78342193,3592.7,3592.6,4.354]
[1753335500307,2.78342193,3592.7,3592.5,0.001]
[1753335500308,3.33349941,3592.6,3592.5,0.001]
[1753335500477,3.33349941,3592.6,3592.5,4.355]
[1753335500899,3.78889941,3592.6,3592.5,4.355]
[1753335501819,3.78889941,3592.6,3592.5,0.001]
[1753335502132,7.64269315,3592.6,3592.5,1e-08]
[1753335502294,7.60789941,3592.6,3592.5,1e-08]
[1753335504432,4.15835194,3591.5,3591.4,0.001]
[1753335505000,4.61375194,3591.5,3591.4,0.001]
[1753335507331,2.78411915,3591.9,3591.4,0.001]
[1753335507631,2.78420536,3591.7,3591.4,0.4304]
[1753335507807,2.78435194,3591.5,3591.4,0.001]
[1753335508011,3.33435194,3591.5,3591.4,0.001]
[1753335508526,7.354,3592.2,3591.4,0.001]
[1753335508734,2.78435194,3591.5,3591.4,0.001]
[1753335508930,0.03480343,3591.6,3591.4,0.001]
[1753335509129,0.03480052,3591.9,3591.4,0.001]
[1753335509330,3.33412669,3591.8,3591.5,0.1392]
[1753335509507,2.81901353,3591.7,3591.5,0.1392]
[1753335509711,0.03480246,3591.7,3591.5,0.1392]
[1753335509910,2.81900196,3591.7,3591.5,0.1392]
[1753335510310,0.55,3591.8,3591.5,0.1392]
[1753335510311,3.33414677,3591.8,3591.5,0.1392]
[1753335510833,2.78427441,3591.6,3591.5,0.1392]
[1753335511034,2.78421221,3591.7,3591.4,0.001]
[1753335511230,0.55,3591.6,3591.4,0.001]
[1753335511534,3.36915633,3591.5,3591.4,0.001]
[1753335511834,3.33435194,3591.5,3591.4,0.001]
[1753335513051,0.9492,3591.9,3591.4,0.001]
[1753335513343,2.78420551,3591.7,3591.4,0.4304]
[1753335513538,2.78414248,3591.8,3591.5,0.1392]
[1753335513723,2.78409857,3591.9,3591.5,0.9405]
[1753335513908,2.78409857,3591.9,3591.5,1.3699]
[1753335514422,0.1384,3592.2,3591.5,1.3699]
[1753335514631,2.92174446,3592.8,3592.1,0.1384]
[1753335514935,2.78318953,3593.0,3592.9,0.1384]
[1753335516849,2.78360823,3592.5,3592.4,4.354]
[1753335517064,2.78347728,3592.7,3592.4,4.354]
[1753335517266,2.78342747,3592.7,3592.5,0.1384]
[1753335517744,2.78349941,3592.6,3592.5,0.1384]
[1753335518208,2.78342334,3592.7,3592.5,0.1384]
[1753335518646,2.78349941,3592.6,3592.5,0.1384]
[1753335518855,2.78349941,3592.6,3592.3,0.8162]
[1753335518856,3.78889941,3592.6,3591.9,0.7987]
[1753335519033,3.33435194,3591.5,3591.4,0.1402]
[1753335519208,3.33435194,3591.5,3591.4,0.001]
[1753335519410,10.26036691,3591.5,3591.4,0.001]
[1753335519636,13.22556252,3591.5,3591.4,0.001]
[1753335522655,17.57856252,3591.5,3591.4,0.001]
[1753335522856,6.33481717,3590.9,3590.8,0.001]
[1753335523060,12.77272775,3590.9,3590.8,0.001]
[1753335523388,3.47409473,3590.8,3590.6,0.001]
[1753335523535,3.96220591,3590.8,3590.6,0.001]
[1753335523735,3.96220591,3590.8,3590.1,0.04]
[1753335523736,3.33536014,3590.2,3590.1,0.04]
[1753335523983,9.80808772,3590.2,3590.1,0.04]
[1753335524166,10.22657072,3590.2,3590.1,0.04]
[1753335524564,4.08801532,3590.0,3589.6,0.001]
[1753335524766,4.12283426,3590.0,3589.6,0.001]
[1753335524941,4.57613426,3590.0,3589.6,0.001]
[1753335525271,3.33567051,3589.8,3589.6,0.001]
[1753335525473,3.37049139,3589.8,3589.6,0.001]
[1753335525841,3.82379139,3589.8,3589.6,0.001]
[1753335526059,3.47494811,3589.7,3589.6,1e-08]
[1753335526261,14.72015869,3589.7,3589.6,1e-08]
[1753335527148,11.28224811,3589.7,3589.6,1e-08]
[1753335529592,12.10094811,3589.7,3589.6,1e-08]
[1753335530353,12.10094811,3589.7,3588.9,0.001]
[1753335530354,2.78629144,3589.0,3588.9,0.001]
[1753335530569,2.82112008,3589.0,3588.9,0.001]
[1753335530976,2.78629144,3589.0,3588.9,0.001]
[1753335531179,3.27442008,3589.0,3588.9,0.001]
[1753335532351,3.27442008,3589.0,3588.8,1e-08]
[1753335532352,3.82442008,3589.0,3588.8,1e-08]
[1753335532549,7.56496908,3588.9,3588.8,1e-08]
[1753335533388,11.91996908,3588.9,3588.8,1e-08]
[1753335533763,6.33660201,3588.6,3588.5,1e-08]
[1753335533990,10.69160201,3588.6,3588.5,1e-08]
[1753335534361,11.14490201,3588.6,3588.5,1e-08]
[1753335535662,3.33691265,3588.2,3588.1,0.041]
[1753335536078,3.79021265,3588.2,3588.1,0.041]
[1753335537807,3.33691265,3588.2,3588.1,0.041]
[1753335538096,2.78691265,3588.2,3588.1,0.041]
[1753335538403,3.68004309,3588.2,3588.1,0.041]
[1753335538608,4.68334309,3588.2,3588.1,0.041]
[1753335538980,4.68334309,3588.2,3588.1,1e-08]
[1753335539289,4.68334309,3588.2,3587.7,0.001]
[1753335539290,3.33722336,3587.8,3587.7,1e-08]
[1753335539599,5.05105769,3587.8,3587.7,1e-08]
[1753335539760,5.50435769,3587.8,3587.7,1e-08]
[1753335539965,5.4695174,3587.8,3587.7,1e-08]
[1753335540403,3.33768956,3587.2,3587.1,0.04]
[1753335541411,3.55221919,3588.1,3587.2,0.8297]
[1753335541569,0.1392,3587.9,3587.3,0.4631]
[1753335541774,0.1392,3588.4,3587.8,0.1392]
[1753335542129,2.78701414,3588.1,3587.8,0.6023]
[1753335542271,0.1392,3588.4,3587.9,0.4631]
[1753335542468,0.1392,3588.7,3588.1,0.1392]
[1753335542667,2.78614715,3589.2,3588.3,0.9689]
[1753335542974,2.78644672,3588.8,3588.3,0.8297]
[1753335543174,2.7874594,3587.5,3587.2,0.8297]
[1753335543371,4.97559844,3588.5,3587.2,0.8297]
[1753335543372,2.78739526,3587.6,3587.4,0.1392]
[1753335543623,2.78745644,3587.5,3587.4,0.1392]
[1753335543800,2.78761185,3587.3,3587.2,0.8297]
[1753335544633,3.47688956,3587.2,3587.1,0.04]
[1753335544809,3.51173567,3587.2,3587.1,0.04]
[1753335544996,3.96503567,3587.2,3587.1,0.04]
[1753335545914,2.78815591,3586.6,3586.5,0.1392]
[1753335546119,2.78815591,3586.6,3586.4,0.001]
[1753335546120,2.78823365,3586.5,3586.4,0.001]
[1753335546301,3.82638657,3586.5,3586.4,0.001]
[1753335547312,3.37308657,3586.5,3586.4,0.001]
[1753335547680,6.82638657,3586.5,3586.4,1e-08]
[1753335547909,6.79153365,3586.5,3586.4,1e-08]
[1753335550018,6.33823365,3586.5,3586.4,1e-08]
[1753335550701,7.14313365,3586.5,3586.4,1e-08]
[1753335550905,7.58933365,3586.5,3586.4,1e-08]
[1753335551082,3.33823365,3586.5,3586.4,1e-08]
[1753335552215,0.1392,3586.6,3586.4,1e-08]
[1753335552393,2.78823365,3586.5,3586.4,1e-08]
[1753335554443,2.92737735,3586.6,3586.4,1e-08]
[1753335554583,2.78823365,3586.5,3586.4,0.45090001]
[1753335554782,2.78823365,3586.5,3586.4,1e-08]
[1753335555022,2.78823365,3586.5,3586.4,0.13920001]
[1753335555193,2.7880592,3586.8,3586.4,0.13920001]
[1753335555393,2.7880592,3586.8,3586.4,0.59010001]
[1753335555594,2.78815591,3586.6,3586.5,0.4509]
[1753335556092,2.78810352,3586.7,3586.5,0.4509]
[1753335556519,2.78810352,3586.7,3586.6,0.4509]
[1753335557157,2.78790592,3587.0,3586.7,0.7541]
[1753335557287,2.78797614,3586.9,3586.8,0.4509]
[1753335557719,2.78800044,3586.8,3586.7,0.7541]
[1753335558123,2.9268543,3587.3,3586.7,1.205]
[1753335558124,2.78790857,3587.0,3586.7,1.205]
[1753335558328,0.1392,3587.3,3586.8,0.4509]
[1753335558502,2.78783003,3587.1,3586.9,0.5901]
[1753335558827,2.78784499,3587.0,3586.9,0.5901]
[1753335558992,2.78784499,3587.0,3586.9,0.1392]
[1753335559599,2.78784499,3587.0,3586.9,0.5901]
[1753335560135,2.78784499,3587.0,3586.9,0.1392]
[1753335560500,2.78784499,3587.0,3586.9,0.5901]
[1753335560826,2.78784499,3587.0,3586.9,0.1392]
[1753335561032,2.787668,3587.3,3586.9,0.5901]
[1753335561239,2.787668,3587.3,3587.1,0.1392]
[1753335561420,2.78768956,3587.2,3587.1,0.5901]
[1753335562902,3.0,3587.2,3587.1,0.5901]
[1753335563102,5.78768956,3587.2,3587.1,0.5901]
[1753335564043,2.78748316,3587.5,3587.1,0.5901]
[1753335564207,3.83074881,3587.9,3587.2,0.7922]
[1753335564409,2.78747044,3587.5,3587.3,0.61097242]
[1753335564620,2.78747044,3587.5,3587.4,0.4509]
[1753335564841,2.78747044,3587.5,3587.4,0.5901]
[1753335565338,0.552,3588.1,3587.4,0.5901]
[1753335565505,2.787068,3588.0,3587.4,0.5901]
[1753335565712,0.552,3588.1,3587.4,0.5901]
[1753335566042,2.78744644,3587.6,3587.4,0.5901]
[1753335566342,2.78732165,3587.7,3587.5,0.4509]
[1753335566728,2.78737874,3587.6,3587.4,0.1392]
[1753335567421,2.78737874,3587.6,3587.5,0.4509]
[1753335567944,3.552,3588.1,3587.5,0.4509]
[1753335567945,2.78731589,3587.7,3587.5,0.4509]
[1753335568148,2.78731589,3587.7,3587.6,0.4509]
[1753335568343,2.78730105,3587.7,3587.6,0.4509]
[1753335568848,2.78745644,3587.5,3587.4,0.1392]
[1753335569021,2.78792271,3586.9,3586.8,0.8292]
[1753335569341,2.78792271,3586.9,3586.8,1.2801]
[1753335569746,2.78792271,3586.9,3586.8,0.8292]
[1753335569936,2.78761185,3587.3,3586.4,1.22640001]
[1753335570133,2.7880802,3586.7,3586.4,1.33784001]
[1753335570333,2.78823365,3586.5,3586.4,1e-08]
[1753335571547,5.78823365,3586.5,3586.4,1e-08]
[1753335574137,2.7882196,3586.6,3586.4,1e-08]
[1753335574338,0.55,3587.2,3586.4,0.45090001]
[1753335574543,2.78808879,3586.7,3586.5,0.7604]
[1753335574741,2.78815591,3586.6,3586.5,0.7604]
[1753335575933,0.002,3587.0,3586.5,1.2113]
[1753335576133,2.78807817,3586.7,3586.6,0.4509]
[1753335576335,0.002,3587.0,3586.6,0.4509]
[1753335576533,2.78800842,3586.8,3586.6,0.4509]
[1753335576937,2.78991383,3587.0,3586.6,0.4509]
[1753335577124,0.002,3587.0,3586.6,0.4509]
[1753335577530,2.78815591,3586.6,3586.5,0.7604]
[1753335577746,2.78815591,3586.6,3586.5,1.27422879]
[1753335578145,2.78815591,3586.6,3586.5,1.72512879]
[1753335578739,2.78815591,3586.6,3586.5,5.1164]
[1753335578966,2.78815591,3586.6,3586.5,0.7604]
[1753335579129,2.78815591,3586.6,3586.5,0.8996]
[1753335580355,2.78809984,3586.7,3586.5,1.3538]
[1753335580556,2.78815591,3586.6,3586.5,0.8996]
[1753335580744,2.78815591,3586.6,3586.5,1.42526]
[1753335580940,2.78815591,3586.6,3586.5,5.78126]
[1753335581139,2.78815591,3586.6,3586.5,1.42526]
[1753335581362,2.78815591,3586.6,3586.5,5.7098]
[1753335582073,0.002,3587.0,3586.6,0.8218]
[1753335582442,0.002,3587.0,3586.9,0.1392]
[1753335582684,0.002,3587.0,3586.9,0.961]
[1753335582826,2.78984499,3587.0,3586.9,1.4152]
[1753335583276,2.78984499,3587.0,3586.9,5.317]
[1753335583440,2.78984499,3587.0,3586.9,0.961]
[1753335583639,2.78984499,3587.0,3586.9,5.317]
[1753335584748,2.78984499,3587.0,3586.9,4.4952]
[1753335585966,2.78984499,3587.0,3586.9,4.9494]
[1753335586367,2.78984499,3587.0,3586.9,5.52577847]
[1753335586570,0.002,3587.0,3586.9,6.27607847]
[1753335589643,0.002,3587.0,3586.9,12.06400118]
[1753335593646,0.002,3587.0,3586.9,16.77000115]
[1753335600390,0.002,3587.0,3586.9,12.06400118]
[1753335600591,0.002,3587.0,3586.9,16.77000115]
[1753335600891,0.002,3587.0,3586.9,17.31800115]
[1753335601100,0.002,3587.0,3586.9,12.96400115]
[1753335601294,0.002,3587.0,3586.9,17.31800115]
[1753335601595,0.002,3587.0,3586.9,12.41400115]
[1753335601768,0.002,3587.0,3586.9,0.1392]
[1753335601970,0.002,3587.0,3586.9,4.4932]
[1753335602773,2.78984499,3587.0,3586.9,0.1392]
[1753335603061,3.25124499,3587.0,3586.9,4.4932]
[1753335604106,0.002,3587.0,3586.9,4.4932]
[1753335605077,1.285,3587.4,3586.9,5.70232]
[1753335605078,0.002,3587.4,3586.9,5.70232]
[1753335605369,0.002,3587.4,3587.3,0.1392]
[1753335605606,0.002,3587.4,3587.3,4.4932]
[1753335606073,0.002,3587.4,3587.3,7.73501185]
[1753335606274,0.002,3587.4,3587.3,9.31981304]
[1753335606474,0.002,3587.4,3587.3,12.31981304]
[1753335609508,0.002,3587.4,3587.3,9.07800119]
[1753335609673,0.002,3587.4,3587.3,0.91270119]
[1753335609871,0.002,3587.4,3587.3,11.1882]
[1753335612105,0.002,3587.4,3587.3,17.79431185]
[1753335612405,0.002,3587.4,3587.3,18.26251185]
[1753335614311,0.002,3587.4,3587.3,22.96851182]
[1753335617980,0.002,3587.4,3587.3,23.51751182]
[1753335618220,0.002,3587.4,3587.3,26.1480332]
[1753335619237,0.4411,3590.0,3589.0,2.78622454]
[1753335619436,0.7744,3590.3,3589.2,0.778]
[1753335619646,0.7744,3590.3,3589.4,3.0]
[1753335619922,0.7744,3590.3,3589.8,2.78567051]
[1753335620126,0.7744,3590.3,3589.8,7.15949712]
[1753335620296,0.7744,3590.3,3589.8,7.13867051]
[1753335620483,0.7744,3590.3,3589.5,0.81518336]
[1753335620677,0.7744,3590.3,3589.6,4.353]
[1753335620881,0.7744,3590.3,3589.8,2.78567051]
[1753335621082,0.7744,3590.3,3589.8,7.13867051]
[1753335622499,0.002,3590.5,3589.8,11.41657051]
[1753335622898,0.002,3590.5,3590.4,2.78520499]
[1753335623221,1e-08,3590.5,3590.4,11.22542549]
[1753335623380,0.8122,3593.1,3590.9,0.822]
[1753335623584,0.4411,3592.8,3591.1,13.06224839]
[1753335623820,0.4411,3592.8,3591.8,2.78411938]
[1753335623982,0.4411,3592.8,3591.8,10.13911938]
[1753335624188,0.8122,3593.1,3591.8,12.6917533]
[1753335624421,1e-08,3591.9,3591.8,12.89845665]
[1753335625238,1e-08,3591.9,3591.8,12.89745665]
[1753335626805,1e-08,3591.9,3591.8,8.54245665]
[1753335627010,1e-08,3591.9,3591.8,12.89445665]
[1753335627598,1e-08,3591.9,3591.8,8.54245665]
[1753335627923,1e-08,3591.9,3591.8,19.11325665]
[1753335628223,1e-08,3591.9,3591.8,19.58145665]
[1753335629028,1e-08,3591.9,3591.8,19.11325665]
[1753335629205,1e-08,3591.9,3591.8,19.25245665]
[1753335629405,1e-08,3591.9,3591.8,19.72065665]
[1753335629799,1e-08,3591.9,3591.8,19.71965665]
[1753335631416,1e-08,3591.9,3591.8,15.37065665]
[1753335631734,1e-08,3591.9,3591.8,19.71965665]
[1753335632853,1e-08,3591.9,3591.8,15.37065665]
[1753335632999,1e-08,3591.9,3591.8,19.71965665]
[1753335633190,0.8011,3593.5,3593.4,2.78287972]
[1753335633397,0.8011,3593.5,3593.4,4.62728797]
[1753335633693,0.8011,3593.5,3593.4,4.76568797]
[1753335633917,0.8011,3593.5,3593.4,0.41668797]
[1753335634194,0.8011,3593.5,3592.4,3.0]
[1753335634195,3.58390228,3593.5,3592.0,3.0]
[1753335634412,2.78288656,3593.4,3593.3,0.1384]
[1753335634741,2.78288656,3593.4,3593.3,4.4864]
[1753335634742,2.78488656,3593.4,3593.3,4.4864]
[1753335635226,0.002,3593.4,3593.3,4.4864]
[1753335635634,0.002,3594.4,3593.3,1.70259877]
[1753335635799,0.002,3594.4,3594.1,2.78228603]
[1753335636012,0.002,3594.4,3594.2,11.062]
[1753335636407,0.4411,3594.3,3594.2,6.687]
[1753335636621,1.2335,3594.3,3593.8,0.21352788]
[1753335636858,0.002,3594.4,3593.9,4.376]
[1753335636859,0.7924,3594.1,3593.9,4.376]
[1753335637208,0.4411,3594.0,3593.9,4.376]
[1753335638227,0.4411,3594.0,3593.3,6.686]
[1753335638228,1.232,3594.0,3593.3,6.686]
[1753335638407,0.4411,3593.9,3593.4,4.375]
[1753335638606,0.828,3593.8,3592.6,2.78343693]
[1753335638813,0.002,3594.4,3592.7,11.06]
[1753335638814,0.828,3593.6,3592.7,11.06]
[1753335639124,0.828,3593.6,3593.3,2.78294575]
[1753335639306,0.828,3593.6,3593.4,4.375]
[1753335640041,0.828,3593.6,3593.4,7.15785002]
[1753335640538,0.828,3593.6,3593.4,4.375]
[1753335641240,0.828,3593.6,3592.8,3.0]
[1753335641539,0.828,3593.6,3592.9,4.375]
[1753335641906,0.4657,3593.5,3592.9,4.375]
[1753335642109,0.4657,3593.5,3592.9,5.82204526]
[1753335642337,0.4657,3593.5,3592.9,1.44704526]
[1753335642640,0.4657,3593.5,3593.1,2.78304622]
[1753335643041,0.828,3593.6,3593.3,2.78295717]
[1753335643242,0.828,3593.6,3593.4,4.374]
[1753335644245,0.828,3593.6,3593.4,7.87250984]
[1753335644557,0.828,3593.6,3593.5,4.372]
[1753335644852,0.828,3593.6,3593.5,4.371]
[1753335645753,0.828,3593.6,3593.5,7.29220228]
[1753335645950,0.828,3593.6,3593.5,4.5094]
[1753335646761,0.7894,3594.0,3593.7,2.78258189]
[1753335646913,0.7894,3594.0,3593.8,4.368]
[1753335647119,0.7894,3594.0,3593.9,0.1384]
[1753335648231,0.7894,3594.0,3593.9,2.92089255]
[1753335648435,0.7894,3594.0,3593.9,0.1384]
[1753335651011,1.2551,3594.0,3593.9,0.1384]
[1753335652857,1.2551,3594.0,3593.9,4.4984]
[1753335653631,0.7894,3594.0,3593.9,4.4984]
[1753335654356,0.7894,3594.0,3593.9,4.4974]
[1753335655523,0.7811,3594.4,3593.9,8.28615929]
[1753335655859,0.7811,3594.4,3594.3,0.1384]
[1753335656071,0.7811,3594.4,3594.3,4.4934]
[1753335656668,0.002,3594.4,3594.3,7.2755829]
[1753335656875,0.002,3594.4,3594.3,8.28137304]
[1753335657076,0.002,3594.4,3594.3,9.47807304]
[1753335657227,0.042,3594.9,3594.8,2.78179592]
[1753335657424,0.042,3594.9,3594.8,7.29592566]
[1753335657624,0.042,3594.9,3594.8,7.27519592]
[1753335657959,0.7631,3595.5,3594.8,8.32463412]
[1753335658452,0.7631,3595.5,3595.4,0.1384]
[1753335658856,0.7631,3595.5,3595.4,4.4944]
[1753335659260,1.2288,3595.5,3595.4,4.4944]
[1753335659460,1.2288,3595.5,3595.4,4.4934]
[1753335659657,1.2288,3595.5,3595.4,0.1384]
[1753335659846,1.2288,3595.5,3595.4,4.4924]
[1753335660250,0.55,3595.4,3592.6,0.8062]
[1753335660559,0.1384,3594.2,3593.4,0.1384]
[1753335660760,0.1384,3594.0,3593.5,4.386]
[1753335661063,0.4657,3594.0,3593.7,0.1384]
[1753335661282,1.25548115,3593.9,3593.8,4.387]
[1753335661432,1.25548115,3593.9,3593.4,0.1384]
[1753335661627,0.805,3593.9,3593.5,4.387]
[1753335662539,0.805,3593.9,3593.6,4.385]
[1753335663250,1.2409,3593.9,3593.6,4.385]
[1753335663466,0.8219,3595.2,3593.6,4.83734]
[1753335663637,0.8219,3594.5,3594.0,2.78240525]
[1753335663973,0.8219,3595.3,3594.1,5.58]
[1753335664160,0.8219,3595.3,3594.9,2.78171169]
[1753335664365,0.002,3596.1,3595.4,2.7813317]
[1753335664366,0.7796,3595.6,3595.4,2.7813317]
[1753335664569,0.002,3595.6,3595.4,7.1703317]
[1753335664970,0.002,3595.6,3595.4,7.6136317]
[1753335665268,0.002,3595.6,3595.4,4.8323]
[1753335665443,0.002,3595.6,3595.4,7.63434984]
[1753335665641,0.002,3595.6,3594.9,4.10827117]
[1753335665841,0.002,3595.6,3594.9,0.27817117]
[1753335666071,0.002,3595.6,3595.0,4.394]
[1753335666575,0.002,3595.6,3595.2,2.78148642]
[1753335666874,0.002,3595.6,3595.4,6.5759317]
[1753335667062,0.002,3595.6,3595.4,10.9699317]
[1753335667471,0.002,3595.6,3595.4,11.4072317]
[1753335667656,0.002,3595.6,3595.4,12.82610351]
[1753335668975,1e-08,3595.6,3595.5,2.78125434]
[1753335669285,0.04,3595.9,3595.8,6.6119223]
[1753335669286,1e-08,3595.9,3595.8,6.6119223]
[1753335669576,1e-08,3595.9,3595.8,11.0039223]
[1753335669800,1e-08,3595.9,3595.8,13.40441046]
[1753335671479,1e-08,3595.9,3595.8,13.40241046]
[1753335671847,0.002,3596.3,3595.8,13.40241046]
[1753335671848,0.8085,3597.7,3596.3,0.8166]
[1753335672047,0.8085,3597.7,3596.5,3.0]
[1753335672246,0.8085,3597.7,3596.6,0.46218882]
[1753335672581,0.8085,3597.7,3597.1,2.77994753]
[1753335672775,0.8085,3597.7,3596.9,2.7801492]
[1753335672977,0.47064538,3597.6,3597.0,4.402]
[1753335673165,0.4359,3597.6,3597.0,4.402]
[1753335673745,0.8085,3597.7,3597.0,4.402]
[1753335673978,0.8085,3597.7,3597.5,0.1384]
[1753335674177,0.8085,3597.7,3597.6,4.402]
[1753335676078,0.8085,3597.7,3597.6,4.398]
[1753335676283,0.04,3597.9,3597.6,4.398]
[1753335676587,0.04,3597.9,3597.7,4.397]
[1753335676948,0.04,3597.9,3597.3,2.77984659]
[1753335677144,0.04,3597.9,3597.4,7.18177133]
[1753335677378,0.04,3597.9,3597.4,5.39817089]
[1753335677780,0.04,3597.9,3597.5,2.77969139]
[1753335678262,0.04,3597.9,3597.4,8.61943141]
[1753335678453,0.04,3597.9,3597.4,0.99617089]
[1753335678655,0.8171,3597.7,3597.5,4.399]
[1753335678983,0.04,3597.9,3597.6,4.398]
[1753335679884,0.4359,3597.8,3597.7,4.401]
[1753335680883,0.04,3597.9,3597.7,4.4]
[1753335681387,0.07474248,3597.9,3597.7,4.4]
[1753335681548,0.51064248,3597.9,3596.7,1.52619271]
[1753335681882,0.811,3597.7,3596.8,4.398]
[1753335682086,0.811,3597.5,3596.8,4.398]
[1753335682313,0.811,3597.5,3596.9,4.398]
[1753335682467,0.811,3597.5,3597.0,0.59448797]
[1753335683089,0.811,3597.5,3596.7,1.52619271]
[1753335683295,0.811,3597.5,3596.9,2.78012375]
[1753335683454,0.811,3597.5,3597.0,0.4415]
[1753335683787,0.811,3597.5,3597.0,2.78008834]
[1753335684097,0.811,3597.5,3597.0,0.4415]
[1753335684265,0.811,3597.5,3597.0,4.13627257]
[1753335684590,0.811,3597.5,3597.0,1.35618496]
[1753335685160,0.04,3597.9,3596.9,0.001]
[1753335685161,0.04,3597.9,3597.1,4.8385]
[1753335685489,0.7816,3597.8,3596.9,0.001]
[1753335685791,0.7816,3597.8,3597.0,4.395]
[1753335686665,0.7816,3597.8,3597.4,0.1384]
[1753335686882,0.7816,3597.8,3597.5,4.394]
[1753335687955,0.7816,3597.8,3597.4,0.1384]
[1753335687956,0.03474442,3597.7,3597.6,4.392]
[1753335688380,0.47064442,3597.7,3597.6,4.392]
[1753335688813,0.47064442,3597.7,3597.4,0.1384]
[1753335689118,1.1897,3597.6,3597.5,4.39]
[1753335690025,0.7995,3597.5,3596.9,0.001]
[1753335690208,0.7995,3597.5,3597.0,4.389]
[1753335690381,0.1384,3597.4,3597.0,4.389]
[1753335690585,0.7995,3597.5,3596.9,0.001]
[1753335690811,0.7995,3597.5,3597.1,0.1384]
[1753335692616,1.2354,3597.5,3597.1,0.1384]
[1753335693305,0.7995,3597.5,3597.1,0.1384]
[1753335694119,0.8134,3597.3,3596.9,0.001]
[1753335694620,7.32699566,3597.0,3596.9,0.001]
[1753335694860,3.69409452,3597.0,3596.9,0.001]
[1753335694989,4.12999452,3597.0,3596.9,0.001]
[1753335696530,7.12999452,3597.0,3596.9,0.001]
[1753335698533,6.69409452,3597.0,3596.9,0.001]
[1753335698743,7.12999452,3597.0,3596.9,0.001]
[1753335699401,0.914,3597.0,3596.9,0.001]
[1753335699730,0.1384,3597.4,3596.9,0.59151927]
[1753335699936,2.78009452,3597.0,3596.9,0.001]
[1753335700230,0.7776,3597.3,3596.9,0.001]
[1753335700435,0.03475021,3597.1,3596.9,0.001]
[1753335700598,2.78009452,3597.0,3596.9,0.001]
[1753335700800,2.78009452,3597.0,3596.9,4.376]
[1753335701027,0.03475021,3597.1,3596.9,4.376]
[1753335701432,2.78009452,3597.0,3596.9,4.376]
[1753335701728,2.78002331,3597.1,3596.9,4.376]
[1753335701931,0.7776,3597.3,3596.9,4.376]
[1753335702134,2.78001917,3597.1,3596.9,4.376]
[1753335702299,2.77993995,3597.2,3596.9,4.376]
[1753335702700,2.77993995,3597.2,3596.9,4.8447]
[1753335702933,0.7776,3597.3,3596.9,4.376]
[1753335703242,0.1384,3597.4,3597.0,0.4687]
[1753335703428,0.1384,3597.4,3596.9,4.98005927]
[1753335703601,2.91820553,3597.4,3597.0,0.4687]
[1753335704009,0.1384,3597.4,3597.0,0.4687]
[1753335704337,2.91818758,3597.4,3597.0,0.4687]
[1753335704635,0.7543,3597.6,3596.9,4.376]
[1753335704636,0.7543,3597.6,3597.1,0.4687]
[1753335704939,2.77971167,3597.5,3597.2,4.369]
[1753335705111,2.91802568,3597.7,3597.2,4.369]
[1753335705311,2.91802568,3597.7,3597.3,4.37]
[1753335705312,2.77972303,3597.5,3597.3,4.37]
[1753335705611,2.77965993,3597.6,3597.3,4.37]
[1753335705813,1.27884635,3597.5,3597.4,4.369]
[1753335706000,1.27884635,3597.5,3596.9,0.001]
[1753335706001,3.58849452,3597.0,3596.9,0.001]